Workbook

Sheet Report
A1: FROM: | B1: Mark Biegert
A2: SUBJECT: | B2: Liberty and Victory Ship Production during WW2
A3: DATE: | B3: 2018-05-27
H5: Yard | I5: Delivery Year | J5: Median Days in Prod. | K5: Reduction
B6: Year of Delivery | C6: Count | E6: Yard and Class | F6: Count | H6: Bethlehem Steel, Fairfield, Baltimore MD | I6: 1944 | J6: 82.5
B7: 1944 | C7: 211 | E7: Bethlehem Steel, Fairfield, Baltimore MD | F7: 94 | I7: 1945 | J7: 79 | K7: =J7-J6 -> -3.5
B8: 1945 | C8: 322 | E8: VC2-M-AP4 | F8: 1 | H8: California Shipbuilding Corporation, Los Angeles CA | I8: 1944 | J8: 115
B9: Grand Total | C9: 533 | E9: VC2-S-AP2 | F9: 93 | I9: 1945 | J9: 84 | K9: =J9-J8 -> -31
E10: California Shipbuilding Corporation, Los Angeles CA | F10: 131 | H10: Kaiser, Vancouver, WA | I10: 1944 | J10: 111
B11: Class | C11: Count | E11: VC2-S-AP2 | F11: 69 | I11: 1945 | J11: 91 | K11: =J11-J10 -> -20
B12: VC2-S-AP2 | C12: 272 | E12: VC2-S-AP3 | F12: 32 | H12: Oregon Shipbuilding Corporation, Portland OR | I12: 1944 | J12: 92
B13: VC2-S-AP3 | C13: 141 | E13: VC2-S-AP5 | F13: 30 | I13: 1945 | J13: 77 | K13: =J13-J12 -> -15
B14: VC2-S-AP5 | C14: 118 | E14: Kaiser, Vancouver, WA | F14: 31 | H14: Permanente Metals Yard No. 1, Richmond CA | I14: 1944 | J14: 115
B15: VC2-S-A2 | C15: 1 | E15: VC2-S-AP5 | F15: 31 | I15: 1945 | J15: 77 | K15: =J15-J14 -> -38
B16: VC2-M-AP4 | C16: 1 | E16: Oregon Shipbuilding Corporation, Portland OR | F16: 134 | H16: Permanente Metals Yard No. 2, Richmond CA | I16: 1944 | J16: 130.5
B17: Grand Total | C17: 533 | E17: VC2-S-AP3 | F17: 99 | I17: 1945 | J17: 69 | K17: =J17-J16 -> -61.5
E18: VC2-S-AP5 | F18: 35 | H18: Ingalls Shipbuilding, Pascagoula, MS | I18: 1944 | J18: 188
E19: Permanente Metals Yard No. 1, Richmond CA | F19: 53
E20: VC2-S-AP2 | F20: 43
E21: VC2-S-AP3 | F21: 10
E22: Permanente Metals Yard No. 2, Richmond CA | F22: 89
E23: VC2-S-AP2 | F23: 67
E24: VC2-S-AP5 | F24: 22
E25: Ingalls Shipbuilding, Pascagoula, MS | F25: 1
E26: VC2-S-A2 | F26: 1
E27: Grand Total | F27: 533
B60: Liberty Ships | C60: Liberty Ships | D60: Victory Ships | E60: L+V Annual | F60: Cumulative
B61: 1941 | C61: 2 | D61: =NA() ->  | E61: =2 -> 2 | F61: =SUM($E$61:E61) -> 2
B62: 1942 | C62: 542 | D62: =NA() ->  | E62: 542 | F62: =SUM($E$61:E62) -> 544
B63: 1943 | C63: 1294 | D63: =NA() ->  | E63: 1294 | F63: =SUM($E$61:E63) -> 1838
B64: 1944 | C64: 728 | D64: 211 | E64: =SUM(C64:D64) -> 939 | F64: =SUM($E$61:E64) -> 2777
B65: 1945 | C65: 144 | D65: 322 | E65: =SUM(C65:D65) -> 466 | F65: =SUM($E$61:E65) -> 3243

Sheet VictoryShipDatabase
A1: FROM: | B1: Mark Biegert
A2: SUBJECT: | B2: Victory Ship Database
A3: DATE: | B3: 2018-05-27
B5: MC Hull No. | C5: Ship | D5: Type | E5: Keel | F5: Launch | G5: Delivery | H5: Yard | I5: Diff
B6: 1 | C6: China Victory | D6: VC2-S-AP3 | E6: 1943-11-28 | F6: 1944-01-26 | G6: 1944-04-01 | H6: California Shipbuilding Corporation, Los Angeles CA | I6: =G6-E6 -> 125
B7: 2 | C7: Greece Victory | D7: VC2-S-AP3 | E7: 1943-12-07 | F7: 1944-02-03 | G7: 1944-04-14 | H7: California Shipbuilding Corporation, Los Angeles CA | I7: 129
B8: 3 | C8: U.S.S.R. Victory | D8: VC2-S-AP3 | E8: 1944-01-03 | F8: 1944-02-26 | G8: 1944-04-26 | H8: California Shipbuilding Corporation, Los Angeles CA | I8: 114
B9: 4 | C9: United States Victory | D9: VC2-S-AP3 | E9: 1944-01-09 | F9: 1944-03-06 | G9: 1944-04-30 | H9: California Shipbuilding Corporation, Los Angeles CA | I9: 112
B10: 5 | C10: Philippines Victory | D10: VC2-S-AP3 | E10: 1944-01-17 | F10: 1944-03-11 | G10: 1944-05-09 | H10: California Shipbuilding Corporation, Los Angeles CA | I10: 113
B11: 6 | C11: New Zealand Victory | D11: VC2-S-AP3 | E11: 1944-01-25 | F11: 1944-03-20 | G11: 1944-05-13 | H11: California Shipbuilding Corporation, Los Angeles CA | I11: 109
B12: 7 | C12: Mexico Victory | D12: VC2-S-AP3 | E12: 1944-01-26 | F12: 1944-03-27 | G12: 1944-05-19 | H12: California Shipbuilding Corporation, Los Angeles CA | I12: 114
B13: 8 | C13: Brazil Victory | D13: VC2-S-AP3 | E13: 1944-02-03 | F13: 1944-03-30 | G13: 1944-05-26 | H13: California Shipbuilding Corporation, Los Angeles CA | I13: 113
B14: 9 | C14: Panama Victory | D14: VC2-S-AP3 | E14: 1944-02-05 | F14: 1944-04-03 | G14: 1944-05-30 | H14: California Shipbuilding Corporation, Los Angeles CA | I14: 115
B15: 10 | C15: Colombia Victory | D15: VC2-S-AP3 | E15: 1944-02-11 | F15: 1944-04-10 | G15: 1944-05-31 | H15: California Shipbuilding Corporation, Los Angeles CA | I15: 110
B16: 11 | C16: Atchison Victory | D16: VC2-S-AP3 | E16: 1944-02-17 | F16: 1944-04-22 | G16: 1944-06-08 | H16: California Shipbuilding Corporation, Los Angeles CA | I16: 112
B17: 12 | C17: Joplin Victory | D17: VC2-S-AP3 | E17: 1944-02-24 | F17: 1944-04-25 | G17: 1944-06-15 | H17: California Shipbuilding Corporation, Los Angeles CA | I17: 112
B18: 13 | C18: Lincoln Victory | D18: VC2-S-AP3 | E18: 1944-02-26 | F18: 1944-04-27 | G18: 1944-06-15 | H18: California Shipbuilding Corporation, Los Angeles CA | I18: 110
B19: 14 | C19: Sapulpa Victory | D19: VC2-S-AP3 | E19: 1944-02-26 | F19: 1944-04-29 | G19: 1944-06-19 | H19: California Shipbuilding Corporation, Los Angeles CA | I19: 114
B20: 15 | C20: Navajo Victory | D20: VC2-S-AP3 | E20: 1944-03-05 | F20: 1944-05-02 | G20: 1944-06-30 | H20: California Shipbuilding Corporation, Los Angeles CA | I20: 117
B21: 16 | C21: Bluefield Victory | D21: VC2-S-AP3 | E21: 1944-03-07 | F21: 1944-05-09 | G21: 1944-06-30 | H21: California Shipbuilding Corporation, Los Angeles CA | I21: 115
B22: 17 | C22: Luray Victory | D22: VC2-S-AP3 | E22: 1944-03-11 | F22: 1944-05-11 | G22: 1944-06-26 | H22: California Shipbuilding Corporation, Los Angeles CA | I22: 107
B23: 18 | C23: Greenville Victory | D23: VC2-S-AP3 | E23: 1944-03-21 | F23: 1944-05-24 | G23: 1944-07-08 | H23: California Shipbuilding Corporation, Los Angeles CA | I23: 109
B24: 19 | C24: Durham Victory | D24: VC2-S-AP3 | E24: 1944-03-30 | F24: 1944-05-26 | G24: 1944-07-05 | H24: California Shipbuilding Corporation, Los Angeles CA | I24: 97
B25: 20 | C25: Kingsport Victory | D25: VC2-S-AP3 | E25: 1944-04-04 | F25: 1944-05-29 | G25: 1944-07-12 | H25: California Shipbuilding Corporation, Los Angeles CA | I25: 99
B26: 21 | C26: Dalton Victory | D26: VC2-S-AP3 | E26: 1944-04-08 | F26: 1944-06-06 | G26: 1944-07-19 | H26: California Shipbuilding Corporation, Los Angeles CA | I26: 102
B27: 22 | C27: Gainesville Victory | D27: VC2-S-AP3 | E27: 1944-04-11 | F27: 1944-06-09 | G27: 1944-07-22 | H27: California Shipbuilding Corporation, Los Angeles CA | I27: 102
B28: 23 | C28: Selma Victory | D28: VC2-S-AP3 | E28: 1944-04-23 | F28: 1944-06-16 | G28: 1944-07-29 | H28: California Shipbuilding Corporation, Los Angeles CA | I28: 97
B29: 24 | C29: Meridian Victory | D29: VC2-S-AP3 | E29: 1944-04-26 | F29: 1944-06-20 | G29: 1944-08-05 | H29: California Shipbuilding Corporation, Los Angeles CA | I29: 101
B30: 25 | C30: Haskell | D30: VC2-S-AP5 | E30: 1944-05-27 | F30: 1944-07-17 | G30: 1944-08-25 | H30: California Shipbuilding Corporation, Los Angeles CA | I30: 90
B31: 26 | C31: Hendry | D31: VC2-S-AP5 | E31: 1944-05-30 | F31: 1944-08-06 | G31: 1944-10-21 | H31: California Shipbuilding Corporation, Los Angeles CA | I31: 144
B32: 27 | C32: Carroll Victory | D32: VC2-S-AP3 | E32: 1944-03-28 | F32: 1944-06-13 | G32: 1944-08-31 | H32: California Shipbuilding Corporation, Los Angeles CA | I32: 156
B33: 28 | C33: Highlands | D33: VC2-S-AP5 | E33: 1944-06-13 | F33: 1944-08-21 | G33: 1944-10-31 | H33: California Shipbuilding Corporation, Los Angeles CA | I33: 140
B34: 29 | C34: Sharon Victory | D34: VC2-S-AP3 | E34: 1944-04-15 | F34: 1944-06-24 | G34: 1944-09-28 | H34: California Shipbuilding Corporation, Los Angeles CA | I34: 166
B35: 30 | C35: Hinsdale | D35: VC2-S-AP5 | E35: 1944-06-21 | F35: 1944-08-28 | G35: 1944-10-31 | H35: California Shipbuilding Corporation, Los Angeles CA | I35: 132
B36: 31 | C36: Pomona Victory | D36: VC2-S-AP3 | E36: 1944-04-29 | F36: 1944-06-26 | G36: 1944-07-31 | H36: California Shipbuilding Corporation, Los Angeles CA | I36: 93
B37: 32 | C37: Clovis Victory | D37: VC2-S-AP3 | E37: 1944-04-28 | F37: 1944-07-08 | G37: 1944-09-29 | H37: California Shipbuilding Corporation, Los Angeles CA | I37: 154
B38: 33 | C38: Grange Victory | D38: VC2-S-AP3 | E38: 1944-05-03 | F38: 1944-06-28 | G38: 1944-08-07 | H38: California Shipbuilding Corporation, Los Angeles CA | I38: =G38-E38 -> 96
B39: 34 | C39: Hocking | D39: VC2-S-AP5 | E39: 1944-06-07 | F39: 1944-07-25 | G39: 1944-08-31 | H39: California Shipbuilding Corporation, Los Angeles CA | I39: 85
B40: 35 | C40: Kenton | D40: VC2-S-AP5 | E40: 1944-06-26 | F40: 1944-09-01 | G40: 1944-11-10 | H40: California Shipbuilding Corporation, Los Angeles CA | I40: 137
B41: 36 | C41: Kittson | D41: VC2-S-AP5 | E41: 1944-06-25 | F41: 1944-08-29 | G41: 1944-12-22 | H41: California Shipbuilding Corporation, Los Angeles CA | I41: 180
B42: 37 | C42: Waco Victory | D42: VC2-S-AP3 | E42: 1944-05-12 | F42: 1944-07-22 | G42: 1944-10-14 | H42: California Shipbuilding Corporation, Los Angeles CA | I42: 155
B43: 38 | C43: La Grange | D43: VC2-S-AP5 | E43: 1944-06-10 | F43: 1944-07-27 | G43: 1944-09-03 | H43: California Shipbuilding Corporation, Los Angeles CA | I43: 85
B44: 39 | C44: Lanier | D44: VC2-S-AP5 | E44: 1944-06-29 | F44: 1944-09-04 | G44: 1944-11-14 | H44: California Shipbuilding Corporation, Los Angeles CA | I44: 138
B45: 40 | C45: St. Mary’s | D45: VC2-S-AP5 | E45: 1944-06-16 | F45: 1944-08-01 | G45: 1944-09-17 | H45: California Shipbuilding Corporation, Los Angeles CA | I45: 93
B46: 41 | C46: Arcadia Victory | D46: VC2-S-AP3 | E46: 1944-05-10 | F46: 1944-07-01 | G46: 1944-09-22 | H46: California Shipbuilding Corporation, Los Angeles CA | I46: 135
B47: 42 | C47: Alamo Victory | D47: VC2-S-AP3 | E47: 1944-05-25 | F47: 1944-07-13 | G47: 1944-08-18 | H47: California Shipbuilding Corporation, Los Angeles CA | I47: 85
B48: 43 | C48: Allendale | D48: VC2-S-AP5 | E48: 1944-07-01 | F48: 1944-09-09 | G48: 1944-11-21 | H48: California Shipbuilding Corporation, Los Angeles CA | I48: 143
B49: 44 | C49: Arenac | D49: VC2-S-AP5 | E49: 1944-07-09 | F49: 1944-09-14 | G49: 1944-12-28 | H49: California Shipbuilding Corporation, Los Angeles CA | I49: 172
B50: 45 | C50: Marvin H. McIntyre | D50: VC2-S-AP5 | E50: 1944-05-12 | F50: 1944-09-21 | G50: 1944-11-25 | H50: California Shipbuilding Corporation, Los Angeles CA | I50: 197
B51: 46 | C51: Attala | D51: VC2-S-AP5 | E51: 1944-07-18 | F51: 1944-09-27 | G51: 1944-11-30 | H51: California Shipbuilding Corporation, Los Angeles CA | I51: 135
B52: 47 | C52: Bandera | D52: VC2-S-AP5 | E52: 1944-07-23 | F52: 1944-10-06 | G52: 1944-11-30 | H52: California Shipbuilding Corporation, Los Angeles CA | I52: 130
B53: 48 | C53: Barnwell | D53: VC2-S-AP5 | E53: 1944-07-25 | F53: 1944-09-30 | G53: 1945-01-19 | H53: California Shipbuilding Corporation, Los Angeles CA | I53: 178
B54: 49 | C54: Beckham | D54: VC2-S-AP5 | E54: 1944-07-27 | F54: 1944-10-14 | G54: 1944-12-09 | H54: California Shipbuilding Corporation, Los Angeles CA | I54: 135
B55: 50 | C55: Bland | D55: VC2-S-AP5 | E55: 1944-08-02 | F55: 1944-10-26 | G55: 1944-12-14 | H55: California Shipbuilding Corporation, Los Angeles CA | I55: 134
B56: 51 | C56: Bosque | D56: VC2-S-AP5 | E56: 1944-08-07 | F56: 1944-10-28 | G56: 1944-12-17 | H56: California Shipbuilding Corporation, Los Angeles CA | I56: 132
B57: 52 | C57: Botetourt | D57: VC2-S-AP5 | E57: 1944-08-22 | F57: 1944-10-19 | G57: 1945-01-31 | H57: California Shipbuilding Corporation, Los Angeles CA | I57: 162
B58: 53 | C58: Bowie | D58: VC2-S-AP5 | E58: 1944-08-28 | F58: 1944-10-31 | G58: 1944-12-21 | H58: California Shipbuilding Corporation, Los Angeles CA | I58: 115
B59: 54 | C59: Braxton | D59: VC2-S-AP5 | E59: 1944-08-29 | F59: 1944-11-03 | G59: 1944-12-27 | H59: California Shipbuilding Corporation, Los Angeles CA | I59: 120
B60: 55 | C60: Broadwater | D60: VC2-S-AP5 | E60: 1944-09-01 | F60: 1944-11-05 | G60: 1944-12-31 | H60: California Shipbuilding Corporation, Los Angeles CA | I60: 121
B61: 56 | C61: Brookings | D61: VC2-S-AP5 | E61: 1944-09-05 | F61: 1944-11-20 | G61: 1944-12-31 | H61: California Shipbuilding Corporation, Los Angeles CA | I61: 117
B62: 57 | C62: Buckingham | D62: VC2-S-AP5 | E62: 1944-09-09 | F62: 1944-11-13 | G62: 1945-01-23 | H62: California Shipbuilding Corporation, Los Angeles CA | I62: 136
B63: 58 | C63: Clearfield | D63: VC2-S-AP5 | E63: 1944-09-15 | F63: 1944-11-21 | G63: 1944-12-31 | H63: California Shipbuilding Corporation, Los Angeles CA | I63: 107
B64: 59 | C64: Clermont | D64: VC2-S-AP5 | E64: 1944-09-21 | F64: 1944-11-25 | G64: 1945-01-27 | H64: California Shipbuilding Corporation, Los Angeles CA | I64: 128
B65: 60 | C65: Clinton | D65: VC2-S-AP5 | E65: 1944-09-27 | F65: 1944-11-29 | G65: 1945-01-31 | H65: California Shipbuilding Corporation, Los Angeles CA | I65: 126
B66: 61 | C66: Colbert | D66: VC2-S-AP5 | E66: 1944-09-30 | F66: 1944-12-01 | G66: 1945-02-06 | H66: California Shipbuilding Corporation, Los Angeles CA | I66: 129
B67: 62 | C67: Collingsworth | D67: VC2-S-AP5 | E67: 1944-10-06 | F67: 1944-12-02 | G67: 1945-02-26 | H67: California Shipbuilding Corporation, Los Angeles CA | I67: 143
B68: 67 | C68: Jericho Victory | D68: VC2-S-AP2 | E68: 1944-10-15 | F68: 1944-12-06 | G68: 1945-01-13 | H68: California Shipbuilding Corporation, Los Angeles CA | I68: 90
B69: 68 | C69: Koloa Victory | D69: VC2-S-AP2 | E69: 1944-10-19 | F69: 1944-12-12 | G69: 1945-01-18 | H69: California Shipbuilding Corporation, Los Angeles CA | I69: 91
B70: 69 | C70: Cody Victory | D70: VC2-S-AP2 | E70: 1944-10-26 | F70: 1944-12-15 | G70: 1945-01-22 | H70: California Shipbuilding Corporation, Los Angeles CA | I70: =G70-E70 -> 88
B71: 70 | C71: Sioux Falls Victory | D71: VC2-S-AP2 | E71: 1944-10-29 | F71: 1944-12-19 | G71: 1945-01-25 | H71: California Shipbuilding Corporation, Los Angeles CA | I71: 88
B72: 71 | C72: Flagstaff Victory | D72: VC2-S-AP2 | E72: 1944-10-31 | F72: 1944-12-22 | G72: 1945-01-29 | H72: California Shipbuilding Corporation, Los Angeles CA | I72: 90
B73: 72 | C73: Anadarko Victory | D73: VC2-S-AP2 | E73: 1944-11-03 | F73: 1944-12-27 | G73: 1945-01-31 | H73: California Shipbuilding Corporation, Los Angeles CA | I73: 89
B74: 73 | C74: Taos Victory | D74: VC2-S-AP2 | E74: 1944-11-06 | F74: 1944-12-29 | G74: 1945-01-31 | H74: California Shipbuilding Corporation, Los Angeles CA | I74: 86
B75: 74 | C75: Douglas Victory | D75: VC2-S-AP2 | E75: 1944-11-13 | F75: 1945-01-09 | G75: 1945-02-07 | H75: California Shipbuilding Corporation, Los Angeles CA | I75: 86
B76: 75 | C76: Texarkana Victory | D76: VC2-S-AP2 | E76: 1944-11-20 | F76: 1945-01-11 | G76: 1945-02-10 | H76: California Shipbuilding Corporation, Los Angeles CA | I76: 82
B77: 76 | C77: Bartlesville Victory | D77: VC2-S-AP2 | E77: 1944-11-21 | F77: 1945-01-13 | G77: 1945-02-13 | H77: California Shipbuilding Corporation, Los Angeles CA | I77: 84
B78: 77 | C78: Cedar Rapids Victory | D78: VC2-S-AP2 | E78: 1944-11-25 | F78: 1945-01-14 | G78: 1945-02-17 | H78: California Shipbuilding Corporation, Los Angeles CA | I78: 84
B79: 78 | C79: Chanute Victory | D79: VC2-S-AP2 | E79: 1944-11-29 | F79: 1945-01-19 | G79: 1945-02-20 | H79: California Shipbuilding Corporation, Los Angeles CA | I79: 83
B80: 79 | C80: Monroe Victory | D80: VC2-S-AP2 | E80: 1944-12-01 | F80: 1945-01-24 | G80: 1945-02-23 | H80: California Shipbuilding Corporation, Los Angeles CA | I80: 84
B81: 80 | C81: Clarksdale Victory | D81: VC2-S-AP2 | E81: 1944-12-02 | F81: 1945-01-27 | G81: 1945-02-26 | H81: California Shipbuilding Corporation, Los Angeles CA | I81: 86
B82: 81 | C82: Alhambra Victory | D82: VC2-S-AP2 | E82: 1944-12-06 | F82: 1945-01-31 | G82: 1945-02-28 | H82: California Shipbuilding Corporation, Los Angeles CA | I82: 84
B83: 82 | C83: Rutgers Victory | D83: VC2-S-AP2 | E83: 1944-12-12 | F83: 1945-02-02 | G83: 1945-03-05 | H83: California Shipbuilding Corporation, Los Angeles CA | I83: 83
B84: 83 | C84: Dickinson Victory | D84: VC2-S-AP2 | E84: 1944-12-15 | F84: 1945-02-09 | G84: 1945-03-01 | H84: California Shipbuilding Corporation, Los Angeles CA | I84: 76
B85: 84 | C85: Colby Victory | D85: VC2-S-AP2 | E85: 1944-12-19 | F85: 1945-02-13 | G85: 1945-03-12 | H85: California Shipbuilding Corporation, Los Angeles CA | I85: 83
B86: 85 | C86: United Victory | D86: VC2-S-AP3 | E86: 1943-11-19 | F86: 1944-01-12 | G86: 1944-02-29 | H86: Oregon Shipbuilding Corporation, Portland OR | I86: 102
B87: 86 | C87: Czechoslovakia Victory | D87: VC2-S-AP3 | E87: 1943-11-25 | F87: 1944-02-20 | G87: 1944-03-11 | H87: Oregon Shipbuilding Corporation, Portland OR | I87: 107
B88: 87 | C88: Poland Victory | D88: VC2-S-AP3 | E88: 1943-11-30 | F88: 1944-01-27 | G88: 1944-03-19 | H88: Oregon Shipbuilding Corporation, Portland OR | I88: 110
B89: 88 | C89: Britain Victory | D89: VC2-S-AP3 | E89: 1943-12-12 | F89: 1944-02-04 | G89: 1944-03-25 | H89: Oregon Shipbuilding Corporation, Portland OR | I89: 104
B90: 89 | C90: Norwalk Victory | D90: VC2-S-AP3 | E90: 1943-12-17 | F90: 1944-02-12 | G90: 1944-03-31 | H90: Oregon Shipbuilding Corporation, Portland OR | I90: 105
B91: 89 | C91: Norway Victory | D91: VC2-S-AP3 | E91: 1943-12-17 | F91: 1944-02-12 | G91: 1944-03-31 | H91: Oregon Shipbuilding Corporation, Portland OR | I91: 105
B92: 90 | C92: Luxembourg Victory | D92: VC2-S-AP3 | E92: 1943-12-26 | F92: 1944-02-28 | G92: 1944-04-05 | H92: Oregon Shipbuilding Corporation, Portland OR | I92: 101
B93: 91 | C93: Netherlands Victory | D93: VC2-S-AP3 | E93: 1944-01-01 | F93: 1944-03-06 | G93: 1944-04-10 | H93: Oregon Shipbuilding Corporation, Portland OR | I93: 100
B94: 92 | C94: Belgium Victory | D94: VC2-S-AP3 | E94: 1944-01-06 | F94: 1944-03-13 | G94: 1944-04-14 | H94: Oregon Shipbuilding Corporation, Portland OR | I94: 99
B95: 93 | C95: Canada Victory | D95: VC2-S-AP3 | E95: 1944-01-22 | F95: 1944-03-20 | G95: 1944-04-19 | H95: Oregon Shipbuilding Corporation, Portland OR | I95: 88
B96: 94 | C96: Iran Victory | D96: VC2-S-AP3 | E96: 1944-01-25 | F96: 1944-03-24 | G96: 1944-05-04 | H96: Oregon Shipbuilding Corporation, Portland OR | I96: 100
B97: 95 | C97: El Salvador Victory | D97: VC2-S-AP3 | E97: 1944-01-28 | F97: 1944-04-01 | G97: 1944-04-27 | H97: Oregon Shipbuilding Corporation, Portland OR | I97: 90
B98: 96 | C98: Dominican Victory | D98: VC2-S-AP3 | E98: 1944-01-31 | F98: 1944-04-06 | G98: 1944-05-09 | H98: Oregon Shipbuilding Corporation, Portland OR | I98: 99
B99: 97 | C99: South Africa Victory | D99: VC2-S-AP3 | E99: 1944-02-02 | F99: 1944-04-11 | G99: 1944-05-04 | H99: Oregon Shipbuilding Corporation, Portland OR | I99: 92
B100: 98 | C100: Yugoslavia Victory | D100: VC2-S-AP3 | E100: 1944-02-05 | F100: 1944-04-15 | G100: 1944-05-07 | H100: Oregon Shipbuilding Corporation, Portland OR | I100: 92
B101: 99 | C101: Plymouth Victory | D101: VC2-S-AP3 | E101: 1944-02-08 | F101: 1944-04-20 | G101: 1944-05-16 | H101: Oregon Shipbuilding Corporation, Portland OR | I101: 98
B102: 100 | C102: Niantic Victory | D102: VC2-S-AP3 | E102: 1944-02-12 | F102: 1944-04-25 | G102: 1944-05-18 | H102: Oregon Shipbuilding Corporation, Portland OR | I102: =G102-E102 -> 96
B103: 101 | C103: Rockland Victory | D103: VC2-S-AP3 | E103: 1944-02-28 | F103: 1944-04-29 | G103: 1944-05-19 | H103: Oregon Shipbuilding Corporation, Portland OR | I103: 81
B104: 102 | C104: Claremont Victory | D104: VC2-S-AP3 | E104: 1944-03-05 | F104: 1944-05-02 | G104: 1944-05-23 | H104: Oregon Shipbuilding Corporation, Portland OR | I104: 79
B105: 103 | C105: Cranston Victory | D105: VC2-S-AP3 | E105: 1944-03-13 | F105: 1944-05-05 | G105: 1944-05-25 | H105: Oregon Shipbuilding Corporation, Portland OR | I105: 73
B106: 104 | C106: Rutland Victory | D106: VC2-S-AP3 | E106: 1944-03-20 | F106: 1944-05-09 | G106: 1944-05-29 | H106: Oregon Shipbuilding Corporation, Portland OR | I106: 70
B107: 105 | C107: Elmira Victory | D107: VC2-S-AP3 | E107: 1944-03-25 | F107: 1944-05-12 | G107: 1944-05-31 | H107: Oregon Shipbuilding Corporation, Portland OR | I107: 67
B108: 106 | C108: Marshfield Victory | D108: VC2-S-AP3 | E108: 1944-04-01 | F108: 1944-05-15 | G108: 1944-06-07 | H108: Oregon Shipbuilding Corporation, Portland OR | I108: 67
B109: 107 | C109: Nampa Victory | D109: VC2-S-AP3 | E109: 1944-04-06 | F109: 1944-05-19 | G109: 1944-06-10 | H109: Oregon Shipbuilding Corporation, Portland OR | I109: 65
B110: 108 | C110: Silverbow Victory | D110: VC2-S-AP3 | E110: 1944-04-11 | F110: 1944-05-23 | G110: 1944-06-15 | H110: Oregon Shipbuilding Corporation, Portland OR | I110: 65
B111: 109 | C111: Mandan Victory | D111: VC2-S-AP3 | E111: 1944-04-15 | F111: 1944-05-26 | G111: 1944-06-19 | H111: Oregon Shipbuilding Corporation, Portland OR | I111: 65
B112: 110 | C112: Aberdeen Victory | D112: VC2-S-AP3 | E112: 1944-04-20 | F112: 1944-05-30 | G112: 1944-06-23 | H112: Oregon Shipbuilding Corporation, Portland OR | I112: 64
B113: 111 | C113: Beloit Victory | D113: VC2-S-AP3 | E113: 1944-04-25 | F113: 1944-06-03 | G113: 1944-07-07 | H113: Oregon Shipbuilding Corporation, Portland OR | I113: 73
B114: 112 | C114: Escanaba Victory | D114: VC2-S-AP3 | E114: 1944-04-29 | F114: 1944-06-07 | G114: 1944-06-29 | H114: Oregon Shipbuilding Corporation, Portland OR | I114: 61
B115: 113 | C115: Hibbing Victory | D115: VC2-S-AP3 | E115: 1944-05-02 | F115: 1944-06-10 | G115: 1944-06-30 | H115: Oregon Shipbuilding Corporation, Portland OR | I115: 59
B116: 114 | C116: Joliet Victory | D116: VC2-S-AP3 | E116: 1944-05-05 | F116: 1944-06-14 | G116: 1944-07-07 | H116: Oregon Shipbuilding Corporation, Portland OR | I116: 63
B117: 115 | C117: Quinault Victory | D117: VC2-S-AP3 | E117: 1944-05-03 | F117: 1944-06-17 | G117: 1944-07-11 | H117: Oregon Shipbuilding Corporation, Portland OR | I117: 69
B118: 116 | C118: Skagway Victory | D118: VC2-S-AP3 | E118: 1944-05-12 | F118: 1944-06-21 | G118: 1944-07-15 | H118: Oregon Shipbuilding Corporation, Portland OR | I118: 64
B119: 117 | C119: La Porte | D119: VC2-S-AP5 | E119: 1944-05-15 | F119: 1944-06-30 | G119: 1944-08-14 | H119: Oregon Shipbuilding Corporation, Portland OR | I119: 91
B120: 118 | C120: Latimer | D120: VC2-S-AP5 | E120: 1944-05-19 | F120: 1944-07-04 | G120: 1944-08-28 | H120: Oregon Shipbuilding Corporation, Portland OR | I120: 101
B121: 119 | C121: Laurens | D121: VC2-S-AP5 | E121: 1944-05-23 | F121: 1944-07-11 | G121: 1944-09-06 | H121: Oregon Shipbuilding Corporation, Portland OR | I121: 106
B122: 120 | C122: Lowndes | D122: VC2-S-AP5 | E122: 1944-05-26 | F122: 1944-07-18 | G122: 1944-09-14 | H122: Oregon Shipbuilding Corporation, Portland OR | I122: 111
B123: 121 | C123: Lycoming | D123: VC2-S-AP5 | E123: 1944-05-30 | F123: 1944-07-25 | G123: 1944-09-20 | H123: Oregon Shipbuilding Corporation, Portland OR | I123: 113
B124: 122 | C124: Mellette | D124: VC2-S-AP5 | E124: 1944-06-03 | F124: 1944-08-04 | G124: 1944-09-27 | H124: Oregon Shipbuilding Corporation, Portland OR | I124: 116
B125: 123 | C125: Napa | D125: VC2-S-AP5 | E125: 1944-06-07 | F125: 1944-08-12 | G125: 1944-10-01 | H125: Oregon Shipbuilding Corporation, Portland OR | I125: 116
B126: 124 | C126: Newberry | D126: VC2-S-AP5 | E126: 1944-06-10 | F126: 1944-08-24 | G126: 1944-10-06 | H126: Oregon Shipbuilding Corporation, Portland OR | I126: 118
B127: 125 | C127: Darke | D127: VC2-S-AP5 | E127: 1944-06-14 | F127: 1944-08-29 | G127: 1944-10-10 | H127: Oregon Shipbuilding Corporation, Portland OR | I127: 118
B128: 126 | C128: Deuel | D128: VC2-S-AP5 | E128: 1944-06-17 | F128: 1944-09-09 | G128: 1944-10-13 | H128: Oregon Shipbuilding Corporation, Portland OR | I128: 118
B129: 127 | C129: Dickens | D129: VC2-S-AP5 | E129: 1944-06-21 | F129: 1944-09-08 | G129: 1944-10-18 | H129: Oregon Shipbuilding Corporation, Portland OR | I129: 119
B130: 128 | C130: Drew | D130: VC2-S-AP5 | E130: 1944-06-30 | F130: 1944-09-14 | G130: 1944-10-22 | H130: Oregon Shipbuilding Corporation, Portland OR | I130: 114
B131: 129 | C131: Eastland | D131: VC2-S-AP5 | E131: 1944-07-04 | F131: 1944-09-19 | G131: 1944-10-26 | H131: Oregon Shipbuilding Corporation, Portland OR | I131: 114
B132: 130 | C132: Edgecombe | D132: VC2-S-AP5 | E132: 1944-07-11 | F132: 1944-09-24 | G132: 1944-10-30 | H132: Oregon Shipbuilding Corporation, Portland OR | I132: 111
B133: 131 | C133: Effingham | D133: VC2-S-AP5 | E133: 1944-07-19 | F133: 1944-09-29 | G133: 1944-11-01 | H133: Oregon Shipbuilding Corporation, Portland OR | I133: 105
B134: 132 | C134: Fond du Lac | D134: VC2-S-AP5 | E134: 1944-07-25 | F134: 1944-10-05 | G134: 1944-11-06 | H134: Oregon Shipbuilding Corporation, Portland OR | I134: =G134-E134 -> 104
B135: 133 | C135: Freestone | D135: VC2-S-AP5 | E135: 1944-08-04 | F135: 1944-10-09 | G135: 1944-11-09 | H135: Oregon Shipbuilding Corporation, Portland OR | I135: 97
B136: 134 | C136: Gage | D136: VC2-S-AP5 | E136: 1944-08-13 | F136: 1944-10-14 | G136: 1944-11-12 | H136: Oregon Shipbuilding Corporation, Portland OR | I136: 91
B137: 135 | C137: Gallatin | D137: VC2-S-AP5 | E137: 1944-08-13 | F137: 1944-10-17 | G137: 1944-11-15 | H137: Oregon Shipbuilding Corporation, Portland OR | I137: 94
B138: 136 | C138: Gosper | D138: VC2-S-AP5 | E138: 1944-08-29 | F138: 1944-10-20 | G138: 1944-11-18 | H138: Oregon Shipbuilding Corporation, Portland OR | I138: 81
B139: 137 | C139: Granville | D139: VC2-S-AP5 | E139: 1944-09-04 | F139: 1944-10-23 | G139: 1944-11-21 | H139: Oregon Shipbuilding Corporation, Portland OR | I139: 78
B140: 138 | C140: Grimes | D140: VC2-S-AP5 | E140: 1944-09-08 | F140: 1944-10-27 | G140: 1944-11-23 | H140: Oregon Shipbuilding Corporation, Portland OR | I140: 76
B141: 139 | C141: Hyde | D141: VC2-S-AP5 | E141: 1944-09-14 | F141: 1944-10-30 | G141: 1944-11-25 | H141: Oregon Shipbuilding Corporation, Portland OR | I141: 72
B142: 140 | C142: Jerauld | D142: VC2-S-AP5 | E142: 1944-09-08 | F142: 1944-11-03 | G142: 1944-11-28 | H142: Oregon Shipbuilding Corporation, Portland OR | I142: 81
B143: 141 | C143: Karnes | D143: VC2-S-AP5 | E143: 1944-09-24 | F143: 1944-11-07 | G143: 1944-12-03 | H143: Oregon Shipbuilding Corporation, Portland OR | I143: 70
B144: 142 | C144: Kershaw | D144: VC2-S-AP5 | E144: 1944-09-29 | F144: 1944-11-12 | G144: 1944-11-30 | H144: Oregon Shipbuilding Corporation, Portland OR | I144: 62
B145: 143 | C145: Kingsbury | D145: VC2-S-AP5 | E145: 1944-10-05 | F145: 1944-11-16 | G145: 1944-12-05 | H145: Oregon Shipbuilding Corporation, Portland OR | I145: 61
B146: 144 | C146: Lander | D146: VC2-S-AP5 | E146: 1944-10-09 | F146: 1944-11-19 | G146: 1944-12-09 | H146: Oregon Shipbuilding Corporation, Portland OR | I146: 61
B147: 145 | C147: Lauderdale | D147: VC2-S-AP5 | E147: 1944-10-14 | F147: 1944-11-23 | G147: 1944-12-12 | H147: Oregon Shipbuilding Corporation, Portland OR | I147: 59
B148: 146 | C148: Lavaca | D148: VC2-S-AP5 | E148: 1944-10-17 | F148: 1944-11-27 | G148: 1944-12-17 | H148: Oregon Shipbuilding Corporation, Portland OR | I148: 61
B149: 147 | C149: Longview Victory | D149: VC2-S-AP3 | E149: 1944-10-20 | F149: 1944-11-30 | G149: 1945-01-05 | H149: Oregon Shipbuilding Corporation, Portland OR | I149: 77
B150: 148 | C150: Lewiston Victory | D150: VC2-S-AP3 | E150: 1944-10-23 | F150: 1944-12-02 | G150: 1945-01-29 | H150: Oregon Shipbuilding Corporation, Portland OR | I150: 98
B151: 149 | C151: Minot Victory | D151: VC2-S-AP3 | E151: 1944-10-27 | F151: 1944-12-04 | G151: 1945-02-01 | H151: Oregon Shipbuilding Corporation, Portland OR | I151: 97
B152: 150 | C152: Pierre Victory | D152: VC2-S-AP3 | E152: 1944-10-30 | F152: 1944-12-06 | G152: 1945-02-05 | H152: Oregon Shipbuilding Corporation, Portland OR | I152: 98
B153: 151 | C153: Bozeman Victory | D153: VC2-S-AP3 | E153: 1944-11-03 | F153: 1944-12-09 | G153: 1945-02-17 | H153: Oregon Shipbuilding Corporation, Portland OR | I153: 106
B154: 152 | C154: Saginaw Victory | D154: VC2-S-AP3 | E154: 1944-11-07 | F154: 1944-12-12 | G154: 1945-02-09 | H154: Oregon Shipbuilding Corporation, Portland OR | I154: 94
B155: 153 | C155: Coeur d'Alene Victory | D155: VC2-S-AP3 | E155: 1944-11-12 | F155: 1944-12-15 | G155: 1945-01-12 | H155: Oregon Shipbuilding Corporation, Portland OR | I155: 61
B156: 154 | C156: Kodiak Victory | D156: VC2-S-AP3 | E156: 1944-11-16 | F156: 1944-12-19 | G156: 1945-01-16 | H156: Oregon Shipbuilding Corporation, Portland OR | I156: 61
B157: 155 | C157: West Lynn Victory | D157: VC2-S-AP3 | E157: 1944-11-19 | F157: 1944-12-22 | G157: 1945-01-22 | H157: Oregon Shipbuilding Corporation, Portland OR | I157: 64
B158: 156 | C158: Loma Victory | D158: VC2-S-AP3 | E158: 1944-11-23 | F158: 1944-12-27 | G158: 1945-01-25 | H158: Oregon Shipbuilding Corporation, Portland OR | I158: 63
B159: 157 | C159: Kelso Victory | D159: VC2-S-AP3 | E159: 1944-11-27 | F159: 1944-12-30 | G159: 1945-02-16 | H159: Oregon Shipbuilding Corporation, Portland OR | I159: 81
B160: 158 | C160: St. Cloud Victory | D160: VC2-S-AP3 | E160: 1944-11-30 | F160: 1945-01-05 | G160: 1945-02-19 | H160: Oregon Shipbuilding Corporation, Portland OR | I160: 81
B161: 159 | C161: Green Bay Victory | D161: VC2-S-AP3 | E161: 1944-12-02 | F161: 1945-01-09 | G161: 1945-01-29 | H161: Oregon Shipbuilding Corporation, Portland OR | I161: 58
B162: 160 | C162: Rock Springs Victory | D162: VC2-S-AP3 | E162: 1944-12-04 | F162: 1945-01-12 | G162: 1945-02-22 | H162: Oregon Shipbuilding Corporation, Portland OR | I162: 80
B163: 161 | C163: La Grande Victory | D163: VC2-S-AP3 | E163: 1944-12-06 | F163: 1945-01-16 | G163: 1945-02-28 | H163: Oregon Shipbuilding Corporation, Portland OR | I163: 84
B164: 162 | C164: Appleton Victory | D164: VC2-S-AP3 | E164: 1944-12-09 | F164: 1945-01-19 | G164: 1945-03-23 | H164: Oregon Shipbuilding Corporation, Portland OR | I164: 104
B165: 163 | C165: Ames Victory | D165: VC2-S-AP3 | E165: 1944-12-12 | F165: 1945-01-23 | G165: 1945-02-24 | H165: Oregon Shipbuilding Corporation, Portland OR | I165: 74
B166: 164 | C166: Adrian Victory | D166: VC2-S-AP3 | E166: 1944-12-15 | F166: 1945-01-26 | G166: 1945-03-03 | H166: Oregon Shipbuilding Corporation, Portland OR | I166: 78
B167: 165 | C167: Jefferson City Victory | D167: VC2-S-AP3 | E167: 1944-12-19 | F167: 1945-01-30 | G167: 1945-03-08 | H167: Oregon Shipbuilding Corporation, Portland OR | I167: 79
B168: 166 | C168: Terre Haute Victory | D168: VC2-S-AP3 | E168: 1944-12-22 | F168: 1945-02-02 | G168: 1945-03-10 | H168: Oregon Shipbuilding Corporation, Portland OR | I168: 78
B169: 167 | C169: Twin Falls Victory | D169: VC2-S-AP3 | E169: 1944-12-27 | F169: 1945-02-06 | G169: 1945-04-04 | H169: Oregon Shipbuilding Corporation, Portland OR | I169: 98
B170: 168 | C170: Paducah Victory | D170: VC2-S-AP3 | E170: 1944-12-30 | F170: 1945-02-09 | G170: 1945-03-14 | H170: Oregon Shipbuilding Corporation, Portland OR | I170: 74
B171: 169 | C171: Dartmouth Victory | D171: VC2-S-AP3 | E171: 1945-01-05 | F171: 1945-02-15 | G171: 1945-03-17 | H171: Oregon Shipbuilding Corporation, Portland OR | I171: 71
B172: 170 | C172: Colgate Victory | D172: VC2-S-AP3 | E172: 1945-01-09 | F172: 1945-02-20 | G172: 1945-03-21 | H172: Oregon Shipbuilding Corporation, Portland OR | I172: 71
B173: 171 | C173: Brown Victory | D173: VC2-S-AP3 | E173: 1945-01-12 | F173: 1945-02-23 | G173: 1945-03-27 | H173: Oregon Shipbuilding Corporation, Portland OR | I173: 74
B174: 172 | C174: Davidson Victory | D174: VC2-S-AP3 | E174: 1945-01-16 | F174: 1945-02-27 | G174: 1945-03-30 | H174: Oregon Shipbuilding Corporation, Portland OR | I174: 73
B175: 173 | C175: Northwestern Victory | D175: VC2-S-AP3 | E175: 1945-01-19 | F175: 1945-03-02 | G175: 1945-04-02 | H175: Oregon Shipbuilding Corporation, Portland OR | I175: 73
B176: 174 | C176: Furman Victory | D176: VC2-S-AP3 | E176: 1945-01-23 | F176: 1945-03-06 | G176: 1945-04-19 | H176: Oregon Shipbuilding Corporation, Portland OR | I176: 86
B177: 175 | C177: Notre Dame Victory | D177: VC2-S-AP3 | E177: 1945-01-26 | F177: 1945-03-09 | G177: 1945-04-06 | H177: Oregon Shipbuilding Corporation, Portland OR | I177: 70
B178: 176 | C178: Westminster Victory | D178: VC2-S-AP3 | E178: 1945-01-30 | F178: 1945-03-13 | G178: 1945-04-11 | H178: Oregon Shipbuilding Corporation, Portland OR | I178: 71
B179: 177 | C179: Wellesley Victory | D179: VC2-S-AP3 | E179: 1945-02-02 | F179: 1945-03-16 | G179: 1945-04-13 | H179: Oregon Shipbuilding Corporation, Portland OR | I179: 70
B180: 178 | C180: Creighton Victory | D180: VC2-S-AP3 | E180: 1945-02-06 | F180: 1945-03-21 | G180: 1945-04-17 | H180: Oregon Shipbuilding Corporation, Portland OR | I180: 70
B181: 179 | C181: Temple Victory | D181: VC2-S-AP3 | E181: 1945-02-09 | F181: 1945-03-27 | G181: 1945-05-02 | H181: Oregon Shipbuilding Corporation, Portland OR | I181: 82
B182: 180 | C182: Willamette Victory | D182: VC2-S-AP3 | E182: 1945-02-15 | F182: 1945-03-30 | G182: 1945-04-25 | H182: Oregon Shipbuilding Corporation, Portland OR | I182: 69
B183: 181 | C183: Reed Victory | D183: VC2-S-AP3 | E183: 1945-02-20 | F183: 1945-04-03 | G183: 1945-04-28 | H183: Oregon Shipbuilding Corporation, Portland OR | I183: 67
B184: 182 | C184: Simmons Victory | D184: VC2-S-AP3 | E184: 1945-02-23 | F184: 1945-04-06 | G184: 1945-05-04 | H184: Oregon Shipbuilding Corporation, Portland OR | I184: 70
B185: 183 | C185: Capital Victory | D185: VC2-S-AP3 | E185: 1945-02-27 | F185: 1945-04-10 | G185: 1945-05-08 | H185: Oregon Shipbuilding Corporation, Portland OR | I185: 70
B186: 184 | C186: Knox Victory | D186: VC2-S-AP3 | E186: 1945-03-02 | F186: 1945-04-13 | G186: 1945-05-11 | H186: Oregon Shipbuilding Corporation, Portland OR | I186: 70
B187: 185 | C187: Lawrence Victory | D187: VC2-S-AP3 | E187: 1945-03-06 | F187: 1945-04-17 | G187: 1945-05-15 | H187: Oregon Shipbuilding Corporation, Portland OR | I187: 70
B188: 186 | C188: Western Reserve Victory | D188: VC2-S-AP3 | E188: 1945-03-09 | F188: 1945-04-20 | G188: 1945-05-18 | H188: Oregon Shipbuilding Corporation, Portland OR | I188: 70
B189: 187 | C189: Whitman Victory | D189: VC2-S-AP3 | E189: 1945-03-13 | F189: 1945-04-24 | G189: 1945-05-26 | H189: Oregon Shipbuilding Corporation, Portland OR | I189: 74
B190: 188 | C190: Macalester Victory | D190: VC2-S-AP3 | E190: 1945-03-16 | F190: 1945-04-28 | G190: 1945-05-29 | H190: Oregon Shipbuilding Corporation, Portland OR | I190: 74
B191: 189 | C191: Coe Victory | D191: VC2-S-AP3 | E191: 1945-03-21 | F191: 1945-05-03 | G191: 1945-06-02 | H191: Oregon Shipbuilding Corporation, Portland OR | I191: 73
B192: 525 | C192: Australia Victory | D192: VC2-S-AP3 | E192: 1944-01-17 | F192: 1944-04-29 | G192: 1944-06-28 | H192: Permanente Metals Yard No. 1, Richmond CA | I192: 163
B193: 526 | C193: Ethiopia Victory | D193: VC2-S-AP3 | E193: 1944-01-20 | F193: 1944-04-20 | G193: 1944-07-17 | H193: Permanente Metals Yard No. 1, Richmond CA | I193: 179
B194: 527 | C194: India Victory | D194: VC2-S-AP3 | E194: 1944-03-04 | F194: 1944-05-15 | G194: 1944-07-29 | H194: Permanente Metals Yard No. 1, Richmond CA | I194: 147
B195: 528 | C195: Iraq Victory | D195: VC2-S-AP3 | E195: 1944-03-14 | F195: 1944-06-06 | G195: 1944-08-08 | H195: Permanente Metals Yard No. 1, Richmond CA | I195: 147
B196: 529 | C196: Costa Rica Victory | D196: VC2-S-AP3 | E196: 1944-03-22 | F196: 1944-06-17 | G196: 1944-08-21 | H196: Permanente Metals Yard No. 1, Richmond CA | I196: 152
B197: 530 | C197: Cuba Victory | D197: VC2-S-AP3 | E197: 1944-03-31 | F197: 1944-06-27 | G197: 1944-08-19 | H197: Permanente Metals Yard No. 1, Richmond CA | I197: 141
B198: 531 | C198: Honduras Victory | D198: VC2-S-AP3 | E198: 1944-04-06 | F198: 1944-07-07 | G198: 1944-08-26 | H198: Permanente Metals Yard No. 1, Richmond CA | I198: =G198-E198 -> 142
B199: 532 | C199: Haiti Victory | D199: VC2-S-AP3 | E199: 1944-04-24 | F199: 1944-07-20 | G199: 1944-09-18 | H199: Permanente Metals Yard No. 1, Richmond CA | I199: 147
B200: 533 | C200: Guatemala Victory | D200: VC2-S-AP3 | E200: 1944-05-01 | F200: 1944-07-13 | G200: 1944-09-06 | H200: Permanente Metals Yard No. 1, Richmond CA | I200: 128
B201: 534 | C201: Nicaragua Victory | D201: VC2-S-AP3 | E201: 1944-05-16 | F201: 1944-08-10 | G201: 1944-09-23 | H201: Permanente Metals Yard No. 1, Richmond CA | I201: 130
... 337 more rows

Sheet WikipediaDatabase
A1: FROM: | B1: Mark Biegert
A2: SUBJECT: | B2: Wikipedia Database of Victory Ships
A3: DATE: | B3: 2018-05-27
A5: Ship Count | B5: =SUBTOTAL(3,C8:C549) -> 535
A7: MC Hull No. | B7: Ship | C7: Type | D7: Keel | E7: Launch | F7: Delivery
A8: 1 | B8: China Victory | C8: VC2-S-AP3 | D8: 1943-11-28 | E8: 1944-01-26 | F8: 1944-04-01
A9: 2 | B9: Greece Victory | C9: VC2-S-AP3 | D9: 1943-12-07 | E9: 1944-02-03 | F9: 1944-04-14
A10: 3 | B10: U.S.S.R. Victory | C10: VC2-S-AP3 | D10: 1944-01-03 | E10: 1944-02-26 | F10: 1944-04-26
A11: 4 | B11: United States Victory | C11: VC2-S-AP3 | D11: 1944-01-09 | E11: 1944-03-06 | F11: 1944-04-30
A12: 5 | B12: Philippines Victory | C12: VC2-S-AP3 | D12: 1944-01-17 | E12: 1944-03-11 | F12: 1944-05-09
A13: 6 | B13: New Zealand Victory | C13: VC2-S-AP3 | D13: 1944-01-25 | E13: 1944-03-20 | F13: 1944-05-13
A14: 7 | B14: Mexico Victory | C14: VC2-S-AP3 | D14: 1944-01-26 | E14: 1944-03-27 | F14: 1944-05-19
A15: 8 | B15: Brazil Victory | C15: VC2-S-AP3 | D15: 1944-02-03 | E15: 1944-03-30 | F15: 1944-05-26
A16: 9 | B16: Panama Victory | C16: VC2-S-AP3 | D16: 1944-02-05 | E16: 1944-04-03 | F16: 1944-05-30
A17: 10 | B17: Colombia Victory | C17: VC2-S-AP3 | D17: 1944-02-11 | E17: 1944-04-10 | F17: 1944-05-31
A18: 11 | B18: Atchison Victory | C18: VC2-S-AP3 | D18: 1944-02-17 | E18: 1944-04-22 | F18: 1944-06-08
A19: 12 | B19: Joplin Victory | C19: VC2-S-AP3 | D19: 1944-02-24 | E19: 1944-04-25 | F19: 1944-06-15
A20: 13 | B20: Lincoln Victory | C20: VC2-S-AP3 | D20: 1944-02-26 | E20: 1944-04-27 | F20: 1944-06-15
A21: 14 | B21: Sapulpa Victory | C21: VC2-S-AP3 | D21: 1944-02-26 | E21: 1944-04-29 | F21: 1944-06-19
A22: 15 | B22: Navajo Victory | C22: VC2-S-AP3 | D22: 1944-03-05 | E22: 1944-05-02 | F22: 1944-06-30
A23: 16 | B23: Bluefield Victory | C23: VC2-S-AP3 | D23: 1944-03-07 | E23: 1944-05-09 | F23: 1944-06-30
A24: 17 | B24: Luray Victory | C24: VC2-S-AP3 | D24: 1944-03-11 | E24: 1944-05-11 | F24: 1944-06-26
A25: 18 | B25: Greenville Victory | C25: VC2-S-AP3 | D25: 1944-03-21 | E25: 1944-05-24 | F25: 1944-07-08
A26: 19 | B26: Durham Victory | C26: VC2-S-AP3 | D26: 1944-03-30 | E26: 1944-05-26 | F26: 1944-07-05
A27: 20 | B27: Kingsport Victory | C27: VC2-S-AP3 | D27: 1944-04-04 | E27: 1944-05-29 | F27: 1944-07-12
A28: 21 | B28: Dalton Victory | C28: VC2-S-AP3 | D28: 1944-04-08 | E28: 1944-06-06 | F28: 1944-07-19
A29: 22 | B29: Gainesville Victory | C29: VC2-S-AP3 | D29: 1944-04-11 | E29: 1944-06-09 | F29: 1944-07-22
A30: 23 | B30: Selma Victory | C30: VC2-S-AP3 | D30: 1944-04-23 | E30: 1944-06-16 | F30: 1944-07-29
A31: 24 | B31: Meridian Victory | C31: VC2-S-AP3 | D31: 1944-04-26 | E31: 1944-06-20 | F31: 1944-08-05
A32: 25 | B32: Haskell (APA-117) | C32: VC2-S-AP5 | D32: 1944-05-27 | E32: 1944-07-17 | F32: 1944-08-25
A33: 26 | B33: Hendry (APA-118) | C33: VC2-S-AP5 | D33: 1944-05-30 | E33: 1944-08-06 | F33: 1944-10-21
A34: 27 | B34: Carroll Victory | C34: VC2-S-AP3 | D34: 1944-03-28 | E34: 1944-06-13 | F34: 1944-08-31
A35: 28 | B35: Highlands (APA-119) | C35: VC2-S-AP5 | D35: 1944-06-13 | E35: 1944-08-21 | F35: 1944-10-31
A36: 29 | B36: Sharon Victory | C36: VC2-S-AP3 | D36: 1944-04-15 | E36: 1944-06-24 | F36: 1944-09-28
A37: 30 | B37: Hinsdale (APA-120) | C37: VC2-S-AP5 | D37: 1944-06-21 | E37: 1944-08-28 | F37: 1944-10-31
A38: 31 | B38: Pomona Victory | C38: VC2-S-AP3 | D38: 1944-04-29 | E38: 1944-06-26 | F38: 1944-07-31
A39: 32 | B39: Clovis Victory | C39: VC2-S-AP3 | D39: 1944-04-28 | E39: 1944-07-08 | F39: 1944-09-29
A40: 33 | B40: Grange Victory | C40: VC2-S-AP3 | D40: 1944-05-03 | E40: 1944-06-28 | F40: 1944-08-07
A41: 34 | B41: Hocking (APA-121) | C41: VC2-S-AP5 | D41: 1944-06-07 | E41: 1944-07-25 | F41: 1944-08-31
A42: 35 | B42: Kenton (APA-122) | C42: VC2-S-AP5 | D42: 1944-06-26 | E42: 1944-09-01 | F42: 1944-11-10
A43: 36 | B43: Kittson (APA-123) | C43: VC2-S-AP5 | D43: 1944-06-25 | E43: 1944-08-29 | F43: 1944-12-22
A44: 37 | B44: Waco Victory | C44: VC2-S-AP3 | D44: 1944-05-12 | E44: 1944-07-22 | F44: 1944-10-14
A45: 38 | B45: La Grange (APA-124) | C45: VC2-S-AP5 | D45: 1944-06-10 | E45: 1944-07-27 | F45: 1944-09-03
A46: 39 | B46: Lanier (APA-125) | C46: VC2-S-AP5 | D46: 1944-06-29 | E46: 1944-09-04 | F46: 1944-11-14
A47: 40 | B47: St. Mary's (APA-126) | C47: VC2-S-AP5 | D47: 1944-06-16 | E47: 1944-08-01 | F47: 1944-09-17
A48: 41 | B48: Arcadia Victory | C48: VC2-S-AP3 | D48: 1944-05-10 | E48: 1944-07-01 | F48: 1944-09-22
A49: 42 | B49: Alamo Victory | C49: VC2-S-AP3 | D49: 1944-05-25 | E49: 1944-07-13 | F49: 1944-08-18
A50: 43 | B50: Allendale (APA-127) | C50: VC2-S-AP5 | D50: 1944-07-01 | E50: 1944-09-09 | F50: 1944-11-21
A51: 44 | B51: Arenac (APA-128) | C51: VC2-S-AP5 | D51: 1944-07-09 | E51: 1944-09-14 | F51: 1944-12-28
A52: 45 | B52: Marvin H. McIntyre (APA-129) | C52: VC2-S-AP5 | D52: 1944-05-12 | E52: 1944-09-21 | F52: 1944-11-25
A53: 46 | B53: Attala (APA-130) | C53: VC2-S-AP5 | D53: 1944-07-18 | E53: 1944-09-27 | F53: 1944-11-30
A54: 47 | B54: Bandera (APA-131) | C54: VC2-S-AP5 | D54: 1944-07-23 | E54: 1944-10-06 | F54: 1944-11-30
A55: 48 | B55: Barnwell (APA-132) | C55: VC2-S-AP5 | D55: 1944-07-25 | E55: 1944-09-30 | F55: 1945-01-19
A56: 49 | B56: Beckham (APA-133) | C56: VC2-S-AP5 | D56: 1944-07-27 | E56: 1944-10-14 | F56: 1944-12-09
A57: 50 | B57: Bland (APA-134) | C57: VC2-S-AP5 | D57: 1944-08-02 | E57: 1944-10-26 | F57: 1944-12-14
A58: 51 | B58: Bosque (APA-135) | C58: VC2-S-AP5 | D58: 1944-08-07 | E58: 1944-10-28 | F58: 1944-12-17
A59: 52 | B59: Botetourt (APA-136) | C59: VC2-S-AP5 | D59: 1944-08-22 | E59: 1944-10-19 | F59: 1945-01-31
A60: 53 | B60: Bowie (APA-137) | C60: VC2-S-AP5 | D60: 1944-08-28 | E60: 1944-10-31 | F60: 1944-12-21
A61: 54 | B61: Braxton (APA-138) | C61: VC2-S-AP5 | D61: 1944-08-29 | E61: 1944-11-03 | F61: 1944-12-27
A62: 55 | B62: Broadwater (APA-139) | C62: VC2-S-AP5 | D62: 1944-09-01 | E62: 1944-11-05 | F62: 1944-12-31
A63: 56 | B63: Brookings (APA-140) | C63: VC2-S-AP5 | D63: 1944-09-05 | E63: 1944-11-20 | F63: 1944-12-31
A64: 57 | B64: Buckingham (APA-141) | C64: VC2-S-AP5 | D64: 1944-09-09 | E64: 1944-11-13 | F64: 1945-01-23
A65: 58 | B65: Clearfield (APA-142) | C65: VC2-S-AP5 | D65: 1944-09-15 | E65: 1944-11-21 | F65: 1944-12-31
A66: 59 | B66: Clermont (APA-143) | C66: VC2-S-AP5 | D66: 1944-09-21 | E66: 1944-11-25 | F66: 1945-01-27
A67: 60 | B67: Clinton (APA-144) | C67: VC2-S-AP5 | D67: 1944-09-27 | E67: 1944-11-29 | F67: 1945-01-31
A68: 61 | B68: Colbert (APA-145) | C68: VC2-S-AP5 | D68: 1944-09-30 | E68: 1944-12-01 | F68: 1945-02-06
A69: 62 | B69: Collingsworth (APA-146) | C69: VC2-S-AP5 | D69: 1944-10-06 | E69: 1944-12-02 | F69: 1945-02-26
A70: 67 | B70: Jericho Victory | C70: VC2-S-AP2 | D70: 1944-10-15 | E70: 1944-12-06 | F70: 1945-01-13
A71: 68 | B71: Koloa Victory | C71: VC2-S-AP2 | D71: 1944-10-19 | E71: 1944-12-12 | F71: 1945-01-18
A72: 69 | B72: Cody Victory | C72: VC2-S-AP2 | D72: 1944-10-26 | E72: 1944-12-15 | F72: 1945-01-22
A73: 70 | B73: Sioux Falls Victory | C73: VC2-S-AP2 | D73: 1944-10-29 | E73: 1944-12-19 | F73: 1945-01-25
A74: 71 | B74: Flagstaff Victory | C74: VC2-S-AP2 | D74: 1944-10-31 | E74: 1944-12-22 | F74: 1945-01-29
A75: 72 | B75: Anadarko Victory | C75: VC2-S-AP2 | D75: 1944-11-03 | E75: 1944-12-27 | F75: 1945-01-31
A76: 73 | B76: Taos Victory | C76: VC2-S-AP2 | D76: 1944-11-06 | E76: 1944-12-29 | F76: 1945-01-31
A77: 74 | B77: Douglas Victory | C77: VC2-S-AP2 | D77: 1944-11-13 | E77: 1945-01-09 | F77: 1945-02-07
A78: 75 | B78: Texarkana Victory | C78: VC2-S-AP2 | D78: 1944-11-20 | E78: 1945-01-11 | F78: 1945-02-10
A79: 76 | B79: Bartlesville Victory | C79: VC2-S-AP2 | D79: 1944-11-21 | E79: 1945-01-13 | F79: 1945-02-13
A80: 77 | B80: Cedar Rapids Victory | C80: VC2-S-AP2 | D80: 1944-11-25 | E80: 1945-01-14 | F80: 1945-02-17
A81: 78 | B81: Chanute Victory | C81: VC2-S-AP2 | D81: 1944-11-29 | E81: 1945-01-19 | F81: 1945-02-20
A82: 79 | B82: Monroe Victory | C82: VC2-S-AP2 | D82: 1944-12-01 | E82: 1945-01-24 | F82: 1945-02-23
A83: 80 | B83: Clarksdale Victory | C83: VC2-S-AP2 | D83: 1944-12-02 | E83: 1945-01-27 | F83: 1945-02-26
A84: 81 | B84: Alhambra Victory | C84: VC2-S-AP2 | D84: 1944-12-06 | E84: 1945-01-31 | F84: 1945-02-28
A85: 82 | B85: Rutgers Victory | C85: VC2-S-AP2 | D85: 1944-12-12 | E85: 1945-02-02 | F85: 1945-03-05
A86: 83 | B86: Dickinson Victory | C86: VC2-S-AP2 | D86: 1944-12-15 | E86: 1945-02-09 | F86: 1945-03-01
A87: 84 | B87: Colby Victory | C87: VC2-S-AP2 | D87: 1944-12-19 | E87: 1945-02-13 | F87: 1945-03-12
A88: 85 | B88: United Victory | C88: VC2-S-AP3 | D88: 1943-11-19 | E88: 1944-01-12 | F88: 1944-02-29
A89: 86 | B89: Czechoslovakia Victory | C89: VC2-S-AP3 | D89: 1943-11-25 | E89: 1944-02-20 | F89: 1944-03-11
A90: 87 | B90: Poland Victory | C90: VC2-S-AP3 | D90: 1943-11-30 | E90: 1944-01-27 | F90: 1944-03-19
A91: 88 | B91: Britain Victory | C91: VC2-S-AP3 | D91: 1943-12-12 | E91: 1944-02-04 | F91: 1944-03-25
A92: 89 | B92: Norway Victory | C92: VC2-S-AP3 | D92: 1943-12-17 | E92: 1944-02-12 | F92: 1944-03-31
A93: 90 | B93: Luxembourg Victory | C93: VC2-S-AP3 | D93: 1943-12-26 | E93: 1944-02-28 | F93: 1944-04-05
A94: 91 | B94: Netherlands Victory | C94: VC2-S-AP3 | D94: 1944-01-01 | E94: 1944-03-06 | F94: 1944-04-10
A95: 92 | B95: Belgium Victory | C95: VC2-S-AP3 | D95: 1944-01-06 | E95: 1944-03-13 | F95: 1944-04-14
A96: 93 | B96: Canada Victory | C96: VC2-S-AP3 | D96: 1944-01-22 | E96: 1944-03-20 | F96: 1944-04-19
A97: 94 | B97: Iran Victory | C97: VC2-S-AP3 | D97: 1944-01-25 | E97: 1944-03-24 | F97: 1944-05-04
A98: 95 | B98: El Salvador Victory | C98: VC2-S-AP3 | D98: 1944-01-28 | E98: 1944-04-01 | F98: 1944-04-27
A99: 96 | B99: Dominican Victory | C99: VC2-S-AP3 | D99: 1944-01-31 | E99: 1944-04-06 | F99: 1944-05-09
A100: 97 | B100: South Africa Victory | C100: VC2-S-AP3 | D100: 1944-02-02 | E100: 1944-04-11 | F100: 1944-05-04
A101: 98 | B101: Yugoslavia Victory | C101: VC2-S-AP3 | D101: 1944-02-05 | E101: 1944-04-15 | F101: 1944-05-07
A102: 99 | B102: Plymouth Victory | C102: VC2-S-AP3 | D102: 1944-02-08 | E102: 1944-04-20 | F102: 1944-05-16
A103: 100 | B103: Niantic Victory | C103: VC2-S-AP3 | D103: 1944-02-12 | E103: 1944-04-25 | F103: 1944-05-18
A104: 101 | B104: Rockland Victory | C104: VC2-S-AP3 | D104: 1944-02-28 | E104: 1944-04-29 | F104: 1944-05-19
A105: 102 | B105: Claremont Victory | C105: VC2-S-AP3 | D105: 1944-03-05 | E105: 1944-05-02 | F105: 1944-05-23
A106: 103 | B106: Cranston Victory | C106: VC2-S-AP3 | D106: 1944-03-13 | E106: 1944-05-05 | F106: 1944-05-25
A107: 104 | B107: Rutland Victory | C107: VC2-S-AP3 | D107: 1944-03-20 | E107: 1944-05-09 | F107: 1944-05-29
A108: 105 | B108: Elmira Victory | C108: VC2-S-AP3 | D108: 1944-03-25 | E108: 1944-05-12 | F108: 1944-05-31
A109: 106 | B109: Marshfield Victory | C109: VC2-S-AP3 | D109: 1944-04-01 | E109: 1944-05-15 | F109: 1944-06-07
A110: 107 | B110: Nampa Victory | C110: VC2-S-AP3 | D110: 1944-04-06 | E110: 1944-05-19 | F110: 1944-06-10
A111: 108 | B111: Silverbow Victory | C111: VC2-S-AP3 | D111: 1944-04-11 | E111: 1944-05-23 | F111: 1944-06-15
A112: 109 | B112: Mandan Victory | C112: VC2-S-AP3 | D112: 1944-04-15 | E112: 1944-05-26 | F112: 1944-06-19
A113: 110 | B113: Aberdeen Victory | C113: VC2-S-AP3 | D113: 1944-04-20 | E113: 1944-05-30 | F113: 1944-06-23
A114: 111 | B114: Beloit Victory | C114: VC2-S-AP3 | D114: 1944-04-25 | E114: 1944-06-03 | F114: 1944-07-07
A115: 112 | B115: Escanaba Victory | C115: VC2-S-AP3 | D115: 1944-04-29 | E115: 1944-06-07 | F115: 1944-06-29
A116: 113 | B116: Hibbing Victory | C116: VC2-S-AP3 | D116: 1944-05-02 | E116: 1944-06-10 | F116: 1944-06-30
A117: 114 | B117: Joliet Victory | C117: VC2-S-AP3 | D117: 1944-05-05 | E117: 1944-06-14 | F117: 1944-07-07
A118: 115 | B118: Quinault Victory | C118: VC2-S-AP3 | D118: 1944-05-03 | E118: 1944-06-17 | F118: 1944-07-11
A119: 116 | B119: Skagway Victory | C119: VC2-S-AP3 | D119: 1944-05-12 | E119: 1944-06-21 | F119: 1944-07-15
A120: 117 | B120: La Porte (APA-151) | C120: VC2-S-AP5 | D120: 1944-05-15 | E120: 1944-06-30 | F120: 1944-08-14
A121: 118 | B121: Latimer (APA-152) | C121: VC2-S-AP5 | D121: 1944-05-19 | E121: 1944-07-04 | F121: 1944-08-28
A122: 119 | B122: Laurens (APA-153) | C122: VC2-S-AP5 | D122: 1944-05-23 | E122: 1944-07-11 | F122: 1944-09-06
A123: 120 | B123: Lowndes (APA-154) | C123: VC2-S-AP5 | D123: 1944-05-26 | E123: 1944-07-18 | F123: 1944-09-14
A124: 121 | B124: Lycoming (APA-155) | C124: VC2-S-AP5 | D124: 1944-05-30 | E124: 1944-07-25 | F124: 1944-09-20
A125: 122 | B125: Mellette (APA-156) | C125: VC2-S-AP5 | D125: 1944-06-03 | E125: 1944-08-04 | F125: 1944-09-27
A126: 123 | B126: Napa (APA-157) | C126: VC2-S-AP5 | D126: 1944-06-07 | E126: 1944-08-12 | F126: 1944-10-01
A127: 124 | B127: Newberry (APA-158) | C127: VC2-S-AP5 | D127: 1944-06-10 | E127: 1944-08-24 | F127: 1944-10-06
A128: 125 | B128: Darke (APA-159) | C128: VC2-S-AP5 | D128: 1944-06-14 | E128: 1944-08-29 | F128: 1944-10-10
A129: 126 | B129: Deuel (APA-160) | C129: VC2-S-AP5 | D129: 1944-06-17 | E129: 1944-09-09 | F129: 1944-10-13
A130: 127 | B130: Dickens (APA-161) | C130: VC2-S-AP5 | D130: 1944-06-21 | E130: 1944-09-08 | F130: 1944-10-18
A131: 128 | B131: Drew (APA-162) | C131: VC2-S-AP5 | D131: 1944-06-30 | E131: 1944-09-14 | F131: 1944-10-22
A132: 129 | B132: Eastland (APA-163) | C132: VC2-S-AP5 | D132: 1944-07-04 | E132: 1944-09-19 | F132: 1944-10-26
A133: 130 | B133: Edgecombe (APA-164) | C133: VC2-S-AP5 | D133: 1944-07-11 | E133: 1944-09-24 | F133: 1944-10-30
A134: 131 | B134: Effingham (APA-165) | C134: VC2-S-AP5 | D134: 1944-07-19 | E134: 1944-09-29 | F134: 1944-11-01
A135: 132 | B135: Fond du Lac (APA-166) | C135: VC2-S-AP5 | D135: 1944-07-25 | E135: 1944-10-05 | F135: 1944-11-06
A136: 133 | B136: Freestone (APA-167) | C136: VC2-S-AP5 | D136: 1944-08-04 | E136: 1944-10-09 | F136: 1944-11-09
A137: 134 | B137: Gage (APA-168) | C137: VC2-S-AP5 | D137: 1944-08-13 | E137: 1944-10-14 | F137: 1944-11-12
A138: 135 | B138: Gallatin (APA-169) | C138: VC2-S-AP5 | D138: 1944-08-13 | E138: 1944-10-17 | F138: 1944-11-15
A139: 136 | B139: Gosper (APA-170) | C139: VC2-S-AP5 | D139: 1944-08-29 | E139: 1944-10-20 | F139: 1944-11-18
A140: 137 | B140: Granville (APA-171) | C140: VC2-S-AP5 | D140: 1944-09-04 | E140: 1944-10-23 | F140: 1944-11-21
A141: 138 | B141: Grimes (APA-172) | C141: VC2-S-AP5 | D141: 1944-09-08 | E141: 1944-10-27 | F141: 1944-11-23
A142: 139 | B142: Hyde (APA-173) | C142: VC2-S-AP5 | D142: 1944-09-14 | E142: 1944-10-30 | F142: 1944-11-25
A143: 140 | B143: Jerauld (APA-174) | C143: VC2-S-AP5 | D143: 1944-09-08 | E143: 1944-11-03 | F143: 1944-11-28
A144: 141 | B144: Karnes (APA-175) | C144: VC2-S-AP5 | D144: 1944-09-24 | E144: 1944-11-07 | F144: 1944-12-03
A145: 142 | B145: Kershaw (APA-176) | C145: VC2-S-AP5 | D145: 1944-09-29 | E145: 1944-11-12 | F145: 1944-11-30
A146: 143 | B146: Kingsbury (APA-177) | C146: VC2-S-AP5 | D146: 1944-10-05 | E146: 1944-11-16 | F146: 1944-12-05
A147: 144 | B147: Lander (APA-178) | C147: VC2-S-AP5 | D147: 1944-10-09 | E147: 1944-11-19 | F147: 1944-12-09
A148: 145 | B148: Lauderdale (APA-179) | C148: VC2-S-AP5 | D148: 1944-10-14 | E148: 1944-11-23 | F148: 1944-12-12
A149: 146 | B149: Lavaca (APA-180) | C149: VC2-S-AP5 | D149: 1944-10-17 | E149: 1944-11-27 | F149: 1944-12-17
A150: 147 | B150: Longview Victory | C150: VC2-S-AP3 | D150: 1944-10-20 | E150: 1944-11-30 | F150: 1945-01-05
A151: 148 | B151: Lewiston Victory | C151: VC2-S-AP3 | D151: 1944-10-23 | E151: 1944-12-02 | F151: 1945-01-29
A152: 149 | B152: Minot Victory | C152: VC2-S-AP3 | D152: 1944-10-27 | E152: 1944-12-04 | F152: 1945-02-01
A153: 150 | B153: Pierre Victory | C153: VC2-S-AP3 | D153: 1944-10-30 | E153: 1944-12-06 | F153: 1945-02-05
A154: 151 | B154: Bozeman Victory | C154: VC2-S-AP3 | D154: 1944-11-03 | E154: 1944-12-09 | F154: 1945-02-17
A155: 152 | B155: Saginaw Victory | C155: VC2-S-AP3 | D155: 1944-11-07 | E155: 1944-12-12 | F155: 1945-02-09
A156: 153 | B156: Coeur d'Alene Victory | C156: VC2-S-AP3 | D156: 1944-11-12 | E156: 1944-12-15 | F156: 1945-01-12
A157: 154 | B157: Kodiak Victory | C157: VC2-S-AP3 | D157: 1944-11-16 | E157: 1944-12-19 | F157: 1945-01-16
A158: 155 | B158: West Lynn Victory | C158: VC2-S-AP3 | D158: 1944-11-19 | E158: 1944-12-22 | F158: 1945-01-22
A159: 156 | B159: Loma Victory | C159: VC2-S-AP3 | D159: 1944-11-23 | E159: 1944-12-27 | F159: 1945-01-25
A160: 157 | B160: Kelso Victory | C160: VC2-S-AP3 | D160: 1944-11-27 | E160: 1944-12-30 | F160: 1945-02-16
A161: 158 | B161: St. Cloud Victory | C161: VC2-S-AP3 | D161: 1944-11-30 | E161: 1945-01-05 | F161: 1945-02-19
A162: 159 | B162: Green Bay Victory | C162: VC2-S-AP3 | D162: 1944-12-02 | E162: 1945-01-09 | F162: 1945-01-29
A163: 160 | B163: Rock Springs Victory | C163: VC2-S-AP3 | D163: 1944-12-04 | E163: 1945-01-12 | F163: 1945-02-22
A164: 161 | B164: La Grande Victory | C164: VC2-S-AP3 | D164: 1944-12-06 | E164: 1945-01-16 | F164: 1945-02-28
A165: 162 | B165: Appleton Victory | C165: VC2-S-AP3 | D165: 1944-12-09 | E165: 1945-01-19 | F165: 1945-03-23
A166: 163 | B166: Ames Victory | C166: VC2-S-AP3 | D166: 1944-12-12 | E166: 1945-01-23 | F166: 1945-02-24
A167: 164 | B167: Adrian Victory | C167: VC2-S-AP3 | D167: 1944-12-15 | E167: 1945-01-26 | F167: 1945-03-03
A168: 165 | B168: Jefferson City Victory | C168: VC2-S-AP3 | D168: 1944-12-19 | E168: 1945-01-30 | F168: 1945-03-08
A169: 166 | B169: Terre Haute Victory | C169: VC2-S-AP3 | D169: 1944-12-22 | E169: 1945-02-02 | F169: 1945-03-10
A170: 167 | B170: Twin Falls Victory | C170: VC2-S-AP3 | D170: 1944-12-27 | E170: 1945-02-06 | F170: 1945-04-04
A171: 168 | B171: Paducah Victory | C171: VC2-S-AP3 | D171: 1944-12-30 | E171: 1945-02-09 | F171: 1945-03-14
A172: 169 | B172: Dartmouth Victory | C172: VC2-S-AP3 | D172: 1945-01-05 | E172: 1945-02-15 | F172: 1945-03-17
A173: 170 | B173: Colgate Victory | C173: VC2-S-AP3 | D173: 1945-01-09 | E173: 1945-02-20 | F173: 1945-03-21
A174: 171 | B174: Brown Victory | C174: VC2-S-AP3 | D174: 1945-01-12 | E174: 1945-02-23 | F174: 1945-03-27
A175: 172 | B175: Davidson Victory | C175: VC2-S-AP3 | D175: 1945-01-16 | E175: 1945-02-27 | F175: 1945-03-30
A176: 173 | B176: Northwestern Victory | C176: VC2-S-AP3 | D176: 1945-01-19 | E176: 1945-03-02 | F176: 1945-04-02
A177: 174 | B177: Furman Victory | C177: VC2-S-AP3 | D177: 1945-01-23 | E177: 1945-03-06 | F177: 1945-04-19
A178: 175 | B178: Notre Dame Victory | C178: VC2-S-AP3 | D178: 1945-01-26 | E178: 1945-03-09 | F178: 1945-04-06
A179: 176 | B179: Westminster Victory | C179: VC2-S-AP3 | D179: 1945-01-30 | E179: 1945-03-13 | F179: 1945-04-11
A180: 177 | B180: Wellesley Victory | C180: VC2-S-AP3 | D180: 1945-02-02 | E180: 1945-03-16 | F180: 1945-04-13
A181: 178 | B181: Creighton Victory | C181: VC2-S-AP3 | D181: 1945-02-06 | E181: 1945-03-21 | F181: 1945-04-17
A182: 179 | B182: Temple Victory | C182: VC2-S-AP3 | D182: 1945-02-09 | E182: 1945-03-27 | F182: 1945-05-02
A183: 180 | B183: Willamette Victory | C183: VC2-S-AP3 | D183: 1945-02-15 | E183: 1945-03-30 | F183: 1945-04-25
A184: 181 | B184: Reed Victory | C184: VC2-S-AP3 | D184: 1945-02-20 | E184: 1945-04-03 | F184: 1945-04-28
A185: 182 | B185: Simmons Victory | C185: VC2-S-AP3 | D185: 1945-02-23 | E185: 1945-04-06 | F185: 1945-05-04
A186: 183 | B186: Capital Victory | C186: VC2-S-AP3 | D186: 1945-02-27 | E186: 1945-04-10 | F186: 1945-05-08
A187: 184 | B187: Knox Victory | C187: VC2-S-AP3 | D187: 1945-03-02 | E187: 1945-04-13 | F187: 1945-05-11
A188: 185 | B188: Lawrence Victory | C188: VC2-S-AP3 | D188: 1945-03-06 | E188: 1945-04-17 | F188: 1945-05-15
A189: 186 | B189: Western Reserve Victory | C189: VC2-S-AP3 | D189: 1945-03-09 | E189: 1945-04-20 | F189: 1945-05-18
A190: 187 | B190: Whitman Victory | C190: VC2-S-AP3 | D190: 1945-03-13 | E190: 1945-04-24 | F190: 1945-05-26
A191: 188 | B191: Macalester Victory | C191: VC2-S-AP3 | D191: 1945-03-16 | E191: 1945-04-28 | F191: 1945-05-29
A192: 189 | B192: Coe Victory | C192: VC2-S-AP3 | D192: 1945-03-21 | E192: 1945-05-03 | F192: 1945-06-02
A193: 525 | B193: Australia Victory | C193: VC2-S-AP3 | D193: 1944-01-17 | E193: 1944-04-29 | F193: 1944-06-28
A194: 526 | B194: Ethiopia Victory | C194: VC2-S-AP3 | D194: 1944-01-20 | E194: 1944-04-20 | F194: 1944-07-17
A195: 527 | B195: India Victory | C195: VC2-S-AP3 | D195: 1944-03-04 | E195: 1944-05-15 | F195: 1944-07-29
A196: 528 | B196: Iraq Victory | C196: VC2-S-AP3 | D196: 1944-03-14 | E196: 1944-06-06 | F196: 1944-08-08
A197: 529 | B197: Costa Rica Victory | C197: VC2-S-AP3 | D197: 1944-03-22 | E197: 1944-06-17 | F197: 1944-08-21
A198: 530 | B198: Cuba Victory | C198: VC2-S-AP3 | D198: 1944-03-31 | E198: 1944-06-27 | F198: 1944-08-19
A199: 531 | B199: Honduras Victory | C199: VC2-S-AP3 | D199: 1944-04-06 | E199: 1944-07-07 | F199: 1944-08-26
A200: 532 | B200: Haiti Victory | C200: VC2-S-AP3 | D200: 1944-04-24 | E200: 1944-07-20 | F200: 1944-09-18
A201: 533 | B201: Guatemala Victory | C201: VC2-S-AP3 | D201: 1944-05-01 | E201: 1944-07-13 | F201: 1944-09-06
A202: 534 | B202: Nicaragua Victory | C202: VC2-S-AP3 | D202: 1944-05-16 | E202: 1944-08-10 | F202: 1944-09-23
... 347 more rows
